fUST/lending_fUST_20241111
["ID","MTS","AMOUNT","RATE_DAILY","PERIOD"]
[341857752,1731257447941,-500.0,0.00025479,2]
[341857753,1731257447950,-500.0,0.00025479,2]
[341857754,1731257447959,-1052.5,0.00025479,2]
[341857755,1731257447968,-500.0,0.00025479,2]
[341857756,1731257447977,-1491.35211969,0.00025479,2]
[341857757,1731257447988,-98.31788031,0.00025479,2]
[341857758,1731257447997,-2172.14,0.00025479,2]
[341857759,1731257448006,-800.73,0.00025479,2]
[341857760,1731257448016,-138.41211969,0.00025479,2]
[341857761,1731257448034,-361.58788031,0.00025479,2]
[341857762,1731257448043,-500.0,0.00025479,2]
[341857763,1731257448053,-2040.76,0.00025479,2]
[341857764,1731257448062,-500.0,0.00025479,2]
[341857765,1731257448071,-659.05,0.00025479,2]
[341857766,1731257448080,-500.0,0.00025479,2]
[341857767,1731257448090,-784.34,0.00025479,2]
[341857768,1731257448101,-500.0,0.00025479,2]
[341857769,1731257448111,-500.0,0.00025479,2]
[341857770,1731257448121,-769.05,0.00025479,2]
[341857771,1731257448130,-500.0,0.00025479,2]
[341857772,1731257448140,-676.42,0.00025479,2]
[341857773,1731257448149,-715.07,0.00025479,2]
[341857774,1731257448158,-1626.08817027,0.00025638,2]
[341857775,1731257448168,-594.26003017,0.00025653,2]
[341857776,1731257448178,-164.0,0.00025655,2]
[341857777,1731257448187,-164.0,0.00025655,2]
[341857778,1731257448196,-164.0,0.00025655,2]
[341857779,1731257448206,-164.0,0.00025655,2]
[341857780,1731257448215,-164.0,0.00025655,2]
[341857781,1731257448224,-164.0,0.00025655,2]
[341857782,1731257448234,-164.0,0.00025655,2]
[341857783,1731257448243,-164.0,0.00025655,2]
[341857784,1731257448252,-164.0,0.00025655,2]
[341857785,1731257448262,-164.0,0.00025655,2]
[341857786,1731257448271,-164.0,0.00025655,2]
[341857787,1731257448280,-164.0,0.00025655,2]
[341857788,1731257448289,-164.0,0.00025655,2]
[341857789,1731257448299,-164.0,0.00025655,2]
[341857790,1731257448307,-164.0,0.00025655,2]
[341857791,1731257448316,-164.0,0.00025655,2]
[341857792,1731257448324,-164.0,0.00025655,2]
[341857793,1731257448332,-164.0,0.00025655,2]
[341857794,1731257448342,-164.0,0.00025655,2]
[341857795,1731257448351,-164.0,0.00025655,2]
[341857796,1731257448361,-164.0,0.00025655,2]
[341857797,1731257448371,-164.0,0.00025655,2]
[341857798,1731257448380,-164.0,0.00025655,2]
[341857799,1731257448390,-164.0,0.00025655,2]
[341857800,1731257448400,-164.0,0.00025655,2]
[341857801,1731257448409,-164.0,0.00025655,2]
[341857802,1731257448419,-164.0,0.00025655,2]
[341857803,1731257448429,-164.0,0.00025655,2]
[341857804,1731257448439,-164.0,0.00025655,2]
[341857805,1731257448450,-500.0,0.00025682,2]
[341857806,1731257448459,-547.84765503,0.00025682,2]
[341857807,1731257448468,-500.0,0.00025682,2]
[341857808,1731257448477,-500.0,0.00025682,2]
[341857809,1731257448487,-507.70940403,0.00025682,2]
[341857810,1731257448497,-509.88595802,0.00025694,2]
[341857811,1731257448506,-500.0,0.00025753,2]
[341857812,1731257448515,-500.0,0.00025753,2]
[341857813,1731257448525,-569.34685226,0.00025753,2]
[341857814,1731257448535,-1431.72,0.00025753,2]
[341857815,1731257448544,-500.0,0.00025753,2]
[341857816,1731257448554,-1385.96,0.00025753,2]
[341857817,1731257448563,-500.0,0.00025753,2]
[341857818,1731257448572,-500.0,0.00025753,2]
[341857819,1731257448582,-500.0,0.00025753,2]
[341857820,1731257448591,-500.0,0.00025753,2]
[341857821,1731257448600,-500.0,0.00025753,2]
[341857822,1731257448612,-500.0,0.00025753,2]
[341857823,1731257448621,-637.28712029,0.00025753,2]
[341857824,1731257448630,-500.0,0.00025753,2]
[341857825,1731257448639,-500.0,0.00025753,2]
[341857826,1731257448648,-369.82773427,0.00025753,2]
[341857827,1731257448658,-500.0,0.00025753,2]
[341857828,1731257448667,-500.0,0.00025753,2]
[341857829,1731257448677,-500.0,0.00025753,2]
[341857830,1731257448686,-558.54,0.00025753,2]
[341857831,1731257448695,-500.0,0.00025753,2]
[341857832,1731257448705,-785.87,0.00025753,2]
[341857833,1731257448715,-500.0,0.00025753,2]
[341857834,1731257448724,-500.0,0.00025753,2]
[341857835,1731257448733,-500.0,0.00025753,2]
[341857836,1731257448743,-510.36922981,0.00025753,2]
[341857837,1731257448752,-719.61,0.00025753,2]
[341857838,1731257448761,-530.71,0.00025753,2]
[341857839,1731257448771,-500.0,0.00025753,2]
[341857840,1731257448780,-571.42,0.00025753,2]
[341857841,1731257448790,-500.0,0.00025753,2]
[341857842,1731257448799,-500.0,0.00025753,2]
[341857843,1731257448808,-500.0,0.00025753,2]
[341857844,1731257448817,-500.0,0.00025753,2]
[341857845,1731257448827,-500.0,0.00025753,2]
[341857846,1731257448836,-605.16,0.00025753,2]
[341857847,1731257448845,-892.4,0.00025753,2]
[341857848,1731257448856,-253.82,0.00025753,2]
[341857849,1731257448866,-254.79024022,0.00025753,2]
[341857850,1731257448875,-500.0,0.00025753,2]
[341857851,1731257448885,-500.0,0.00025753,2]
[341857852,1731257448893,-500.0,0.00025753,2]
[341857853,1731257448903,-500.0,0.00025753,2]
[341857854,1731257448912,-500.0,0.00025753,2]
[341857855,1731257448922,-500.0,0.00025753,2]
[341857856,1731257448932,-605.83,0.00025753,2]
[341857857,1731257448942,-5400.98,0.00025753,2]
[341857858,1731257448952,-500.0,0.00025753,2]
[341857859,1731257448962,-544.5766768,0.00025753,2]
[341857860,1731257448971,-500.0,0.00025753,2]
[341857861,1731257448981,-543.42594254,0.00025753,2]
[341857862,1731257448990,-500.0,0.00025753,2]
[341857863,1731257449000,-240.71928159,0.00025753,2]
[341857864,1731257449010,-500.0,0.00025753,2]
[341857865,1731257449019,-500.0,0.00025753,2]
[341857866,1731257449029,-1260.85,0.00025753,2]
[341857867,1731257449038,-710.94,0.00025753,2]
[341857868,1731257449047,-500.0,0.00025753,2]
[341857869,1731257449057,-252.62677597,0.00025753,2]
[341857870,1731257449066,-500.0,0.00025753,2]
[341857871,1731257449075,-500.0,0.00025753,2]
[341857872,1731257449084,-717.77,0.00025753,2]
[341857873,1731257449094,-500.0,0.00025753,2]
[341857874,1731257449107,-11209.15,0.00025753,2]
[341857875,1731257449116,-500.0,0.00025753,2]
[341857876,1731257449126,-500.0,0.00025753,2]
[341857877,1731257449136,-698.5,0.00025753,2]
[341857878,1731257449145,-914.41,0.00025753,2]
[341857879,1731257449155,-500.0,0.00025753,2]
[341857880,1731257449164,-996.8,0.00025753,2]
[341857881,1731257449173,-500.0,0.00025753,2]
[341857882,1731257449184,-500.0,0.00025753,2]
[341857883,1731257449193,-500.0,0.00025753,2]
[341857884,1731257449202,-500.0,0.00025753,2]
[341857885,1731257449211,-1104.83,0.00025753,2]
[341857886,1731257449220,-500.0,0.00025753,2]
[341857887,1731257449230,-1052.5,0.00025753,2]
[341857888,1731257449349,-500.0,0.00025753,2]
[341857889,1731257449361,-1589.67,0.00025753,2]
[341857890,1731257449371,-2172.14,0.00025753,2]
[341857891,1731257449381,-800.73,0.00025753,2]
[341857892,1731257449390,-500.0,0.00025753,2]
[341857893,1731257449400,-500.0,0.00025753,2]
[341857894,1731257449409,-2040.76,0.00025753,2]
[341857895,1731257449419,-500.0,0.00025753,2]
[341857896,1731257449429,-659.05,0.00025753,2]
[341857897,1731257449439,-500.0,0.00025753,2]
[341857898,1731257449450,-784.34,0.00025753,2]
[341857899,1731257449459,-500.0,0.00025753,2]
[341857900,1731257449469,-500.0,0.00025753,2]
[341857901,1731257449479,-769.05,0.00025753,2]
[341857902,1731257449488,-500.0,0.00025753,2]
[341857903,1731257449498,-676.42,0.00025753,2]
[341857904,1731257449509,-715.07,0.00025753,2]
[341857905,1731257449519,-163.0,0.0002589,2]
[341857906,1731257449528,-184.41,0.00025975,11]
[341857907,1731257449537,-195.67433294,0.00025975,11]
[341857908,1731257449548,-150.112233,0.00026,12]
[341857909,1731257449558,-1533.7,0.00026,14]
[341857910,1731257449567,-1344.97,0.00026,14]
[341857911,1731257449576,-500.0,0.00026016,2]
[341857912,1731257449585,-500.0,0.00026016,2]
[341857913,1731257449595,-500.0,0.00026016,2]
[341857914,1731257449606,-365.92,0.00026017,3]
[341857915,1731257449615,-500.0,0.00026027,2]
[341857916,1731257449624,-500.0,0.00026027,2]
[341857917,1731257449634,-1431.72,0.00026027,2]
[341857918,1731257449643,-500.0,0.00026027,2]
[341857919,1731257449652,-1385.96,0.00026027,2]
[341857920,1731257449661,-182.11742849,0.00026027,2]
[341857921,1731257449671,-500.0,0.00026027,2]
[341857922,1731257449681,-509.52731785,0.00026027,2]
[341857923,1731257449691,-500.0,0.00026027,2]
[341857924,1731257449700,-500.0,0.00026027,2]
[341857925,1731257449710,-500.0,0.00026027,2]
[341857926,1731257449719,-181.6,0.00026027,2]
[341857927,1731257449729,-500.0,0.00026027,2]
[341857928,1731257449738,-500.0,0.00026027,2]
[341857929,1731257449748,-558.54,0.00026027,2]
[341857930,1731257449758,-500.0,0.00026027,2]
[341857931,1731257449769,-785.87,0.00026027,2]
[341857932,1731257449778,-500.0,0.00026027,2]
[341857933,1731257449789,-500.0,0.00026027,2]
[341857934,1731257449799,-500.0,0.00026027,2]
[341857935,1731257449809,-719.61,0.00026027,2]
[341857936,1731257449820,-530.71,0.00026027,2]
[341857937,1731257449831,-500.0,0.00026027,2]
[341857938,1731257449841,-500.0,0.00026027,2]
[341857939,1731257449851,-500.0,0.00026027,2]
[341857940,1731257449861,-500.0,0.00026027,2]
[341857941,1731257449870,-605.16,0.00026027,2]
[341857942,1731257449879,-892.4,0.00026027,2]
[341857943,1731257449889,-500.0,0.00026027,2]
[341857944,1731257449898,-316.66,0.00026027,2]
[341857945,1731257449907,-500.0,0.00026027,2]
[341857946,1731257449918,-500.0,0.00026027,2]
[341857947,1731257449927,-590.86009308,0.00026027,2]
[341857948,1731257449936,-500.0,0.00026027,2]
[341857949,1731257449946,-605.83,0.00026027,2]
[341857950,1731257449955,-5400.98,0.00026027,2]
[341857951,1731257449965,-500.0,0.00026027,2]
[341857952,1731257449975,-297.73372021,0.00026027,2]
[341857953,1731257449985,-500.0,0.00026027,2]
[341857954,1731257449995,-500.0,0.00026027,2]
[341857955,1731257450004,-1260.85,0.00026027,2]
[341857956,1731257450014,-710.94,0.00026027,2]
[341857957,1731257450023,-500.0,0.00026027,2]
[341857958,1731257450032,-500.0,0.00026027,2]
[341857959,1731257450042,-500.0,0.00026027,2]
[341857960,1731257450051,-717.77,0.00026027,2]
[341857961,1731257450060,-229.80148575,0.00026027,2]
[341857962,1731257450069,-11209.15,0.00026027,2]
[341857963,1731257450078,-500.0,0.00026027,2]
[341857964,1731257450087,-500.0,0.00026027,2]
[341857965,1731257450098,-698.5,0.00026027,2]
[341857966,1731257450115,-914.41,0.00026027,2]
[341857967,1731257450124,-500.0,0.00026027,2]
[341857968,1731257450133,-996.8,0.00026027,2]
[341857969,1731257450142,-500.0,0.00026027,2]
[341857970,1731257450152,-500.0,0.00026027,2]
[341857971,1731257450161,-500.0,0.00026027,2]
[341857972,1731257450170,-500.0,0.00026027,2]
[341857973,1731257450181,-1104.83,0.00026027,2]
[341857974,1731257450190,-557.71656654,0.00026027,2]
[341857975,1731257450199,-1052.5,0.00026027,2]
[341857976,1731257450208,-500.0,0.00026027,2]
[341857977,1731257450217,-1589.67,0.00026027,2]
[341857978,1731257450227,-2172.14,0.00026027,2]
[341857979,1731257450236,-800.73,0.00026027,2]
[341857980,1731257450245,-500.0,0.00026027,2]
[341857981,1731257450254,-500.0,0.00026027,2]
[341857982,1731257450264,-2040.76,0.00026027,2]
[341857983,1731257450274,-500.0,0.00026027,2]
[341857984,1731257450283,-659.05,0.00026027,2]
[341857985,1731257450292,-500.0,0.00026027,2]
[341857986,1731257450302,-784.34,0.00026027,2]
[341857987,1731257450311,-500.0,0.00026027,2]
[341857988,1731257450320,-500.0,0.00026027,2]
[341857989,1731257450329,-769.05,0.00026027,2]
[341857990,1731257450339,-500.0,0.00026027,2]
[341857991,1731257450348,-676.42,0.00026027,2]
[341857992,1731257450360,-715.07,0.00026027,2]
[341857993,1731257450369,-239.26750131,0.00026042,2]
[341857994,1731257450378,-1000.0,0.00026042,2]
[341857995,1731257450388,-1000.0,0.00026042,2]
[341857996,1731257450397,-508.64599057,0.00026042,2]
[341857997,1731257450407,-1000.0,0.00026042,2]
[341857998,1731257450416,-1000.0,0.00026042,2]
[341857999,1731257450425,-1000.0,0.00026042,2]
[341858000,1731257450435,-150.112233,0.000261,20]
[341858001,1731257450443,-1626.08817027,0.00026171,2]
[341858002,1731257450453,-594.26003017,0.00026201,2]
[341858003,1731257450462,-254.19,0.00026201,7]
[341858004,1731257450471,-190.64477527,0.00026201,7]
[341858005,1731257450480,-500.0,0.00026301,2]
[341858006,1731257450489,-500.0,0.00026301,2]
[341858007,1731257450499,-1431.72,0.00026301,2]
[341858008,1731257450509,-500.0,0.00026301,2]
[341858009,1731257450518,-1385.96,0.00026301,2]
[341858010,1731257450527,-500.0,0.00026301,2]
[341858011,1731257450536,-500.0,0.00026301,2]
[341858012,1731257450545,-500.0,0.00026301,2]
[341858013,1731257450555,-500.0,0.00026301,2]
[341858014,1731257450565,-500.0,0.00026301,2]
[341858015,1731257450574,-558.54,0.00026301,2]
[341858016,1731257450583,-500.0,0.00026301,2]
[341858017,1731257450592,-785.87,0.00026301,2]
[341858018,1731257450601,-424.0,0.00026301,2]
[341858019,1731257450615,-500.0,0.00026301,2]
[341858020,1731257450624,-500.0,0.00026301,2]
[341858021,1731257450633,-719.61,0.00026301,2]
[341858022,1731257450643,-530.71,0.00026301,2]
[341858023,1731257450652,-500.0,0.00026301,2]
[341858024,1731257450661,-500.0,0.00026301,2]
[341858025,1731257450670,-500.0,0.00026301,2]
[341858026,1731257450679,-500.0,0.00026301,2]
[341858027,1731257450688,-605.16,0.00026301,2]
[341858028,1731257450697,-892.4,0.00026301,2]
[341858029,1731257450707,-500.0,0.00026301,2]
[341858030,1731257450716,-500.0,0.00026301,2]
[341858031,1731257450725,-500.0,0.00026301,2]
[341858032,1731257450734,-500.0,0.00026301,2]
[341858033,1731257450743,-605.83,0.00026301,2]
[341858034,1731257450753,-5400.98,0.00026301,2]
[341858035,1731257450762,-500.0,0.00026301,2]
[341858036,1731257450771,-500.0,0.00026301,2]
[341858037,1731257450781,-500.0,0.00026301,2]
[341858038,1731257450790,-1260.85,0.00026301,2]
[341858039,1731257450799,-710.94,0.00026301,2]
[341858040,1731257450808,-500.0,0.00026301,2]
[341858041,1731257450817,-500.0,0.00026301,2]
[341858042,1731257450827,-500.0,0.00026301,2]
[341858043,1731257450836,-717.77,0.00026301,2]
[341858044,1731257450845,-11209.15,0.00026301,2]
[341858045,1731257450854,-500.0,0.00026301,2]
[341858046,1731257450869,-500.0,0.00026301,2]
[341858047,1731257450878,-698.5,0.00026301,2]
[341858048,1731257450887,-914.41,0.00026301,2]
[341858049,1731257450897,-996.8,0.00026301,2]
[341858050,1731257450906,-500.0,0.00026301,2]
[341858051,1731257450915,-500.0,0.00026301,2]
[341858052,1731257450924,-500.0,0.00026301,2]
[341858053,1731257450934,-500.0,0.00026301,2]
[341858054,1731257450943,-1104.83,0.00026301,2]
[341858055,1731257450952,-1052.5,0.00026301,2]
[341858056,1731257450962,-500.0,0.00026301,2]
[341858057,1731257450971,-1589.67,0.00026301,2]
[341858058,1731257450981,-2172.14,0.00026301,2]
[341858059,1731257450991,-800.73,0.00026301,2]
[341858060,1731257451002,-500.0,0.00026301,2]
[341858061,1731257451011,-500.0,0.00026301,2]
[341858062,1731257451021,-2040.76,0.00026301,2]
[341858063,1731257451030,-500.0,0.00026301,2]
[341858064,1731257451040,-659.05,0.00026301,2]
[341858065,1731257451050,-500.0,0.00026301,2]
[341858066,1731257451059,-784.34,0.00026301,2]
[341858067,1731257451069,-500.0,0.00026301,2]
[341858068,1731257451078,-500.0,0.00026301,2]
[341858069,1731257451088,-769.05,0.00026301,2]
[341858070,1731257451098,-500.0,0.00026301,2]
[341858071,1731257451113,-676.42,0.00026301,2]
[341858072,1731257451122,-715.07,0.00026301,2]
[341858073,1731257451131,-653.93431464,0.00026342,2]
[341858074,1731257451141,-465.4688816,0.00026342,2]
[341858075,1731257451151,-500.86409177,0.00026342,2]
[341858076,1731257451160,-1000.0,0.00026342,2]
[341858077,1731257451169,-315.1790048,0.00026384,2]
[341858078,1731257451180,-246.56,0.00026575,2]
[341858079,1731257451189,-500.0,0.00026575,2]
[341858080,1731257451198,-1431.72,0.00026575,2]
[341858081,1731257451207,-500.0,0.00026575,2]
[341858082,1731257451216,-1385.96,0.00026575,2]
[341858083,1731257451226,-500.0,0.00026575,2]
[341858084,1731257451235,-500.0,0.00026575,2]
[341858085,1731257451244,-500.0,0.00026575,2]
[341858086,1731257451254,-500.0,0.00026575,2]
[341858087,1731257451263,-500.0,0.00026575,2]
[341858088,1731257451273,-558.54,0.00026575,2]
[341858089,1731257451282,-500.0,0.00026575,2]
[341858090,1731257451291,-785.87,0.00026575,2]
[341858091,1731257451300,-500.0,0.00026575,2]
[341858092,1731257451309,-500.0,0.00026575,2]
[341858093,1731257451319,-719.61,0.00026575,2]
[341858094,1731257451328,-530.71,0.00026575,2]
[341858095,1731257451337,-500.0,0.00026575,2]
[341858096,1731257451347,-500.0,0.00026575,2]
[341858097,1731257451357,-500.0,0.00026575,2]
[341858098,1731257451367,-500.0,0.00026575,2]
[341858099,1731257451375,-605.16,0.00026575,2]
[341858100,1731257451384,-892.4,0.00026575,2]
[341858101,1731257451393,-500.0,0.00026575,2]
[341858102,1731257451403,-500.0,0.00026575,2]
[341858103,1731257451411,-500.0,0.00026575,2]
[341858104,1731257451422,-500.0,0.00026575,2]
[341858105,1731257451431,-605.83,0.00026575,2]
[341858106,1731257451440,-5400.98,0.00026575,2]
[341858107,1731257451450,-500.0,0.00026575,2]
[341858108,1731257451460,-500.0,0.00026575,2]
[341858109,1731257451470,-500.0,0.00026575,2]
[341858110,1731257451480,-1260.85,0.00026575,2]
[341858111,1731257451491,-710.94,0.00026575,2]
[341858112,1731257451503,-500.0,0.00026575,2]
[341858113,1731257451514,-500.0,0.00026575,2]
[341858114,1731257451523,-500.0,0.00026575,2]
[341858115,1731257451533,-717.77,0.00026575,2]
[341858116,1731257451642,-11209.15,0.00026575,2]
[341858117,1731257451653,-500.0,0.00026575,2]
[341858118,1731257451663,-500.0,0.00026575,2]
[341858119,1731257451673,-698.5,0.00026575,2]
[341858120,1731257451683,-914.41,0.00026575,2]
[341858121,1731257451692,-996.8,0.00026575,2]
[341858122,1731257451701,-500.0,0.00026575,2]
[341858123,1731257451711,-500.0,0.00026575,2]
[341858124,1731257451720,-500.0,0.00026575,2]
[341858125,1731257451730,-500.0,0.00026575,2]
[341858126,1731257451739,-1104.83,0.00026575,2]
[341858127,1731257451749,-1052.5,0.00026575,2]
[341858128,1731257451759,-500.0,0.00026575,2]
[341858129,1731257451768,-1589.67,0.00026575,2]
[341858130,1731257451777,-2172.14,0.00026575,2]
[341858131,1731257451786,-800.73,0.00026575,2]
[341858132,1731257451795,-500.0,0.00026575,2]
[341858133,1731257451805,-410.85747972,0.00026575,2]
[341858134,1731257451814,-2040.76,0.00026575,2]
[341858135,1731257451823,-500.0,0.00026575,2]
[341858136,1731257451833,-659.05,0.00026575,2]
[341858137,1731257451842,-500.0,0.00026575,2]
[341858138,1731257451852,-784.34,0.00026575,2]
[341858139,1731257451862,-500.0,0.00026575,2]
[341858140,1731257451871,-500.0,0.00026575,2]
[341858141,1731257451879,-769.05,0.00026575,2]
[341858142,1731257451888,-500.0,0.00026575,2]
[341858143,1731257451897,-676.42,0.00026575,2]
[341858144,1731257451906,-715.07,0.00026575,2]
[341858145,1731257451916,-471.45329135,0.00026587,2]
[341858146,1731257451925,-1000.0,0.00026642,2]
[341858147,1731257451934,-478.38537773,0.00026642,2]
[341858148,1731257451944,-1000.0,0.00026642,2]
[341858149,1731257451954,-150.112234,0.000267,12]
[341858150,1731257451963,-1626.08817027,0.00026703,2]
[341858151,1731257451972,-594.26003017,0.00026749,2]
[341858152,1731257451982,-587.0,0.0002682,2]
[341858153,1731257451991,-500.0,0.00026849,2]
[341858154,1731257451999,-1431.72,0.00026849,2]
[341858155,1731257452008,-500.0,0.00026849,2]
[341858156,1731257452017,-1385.96,0.00026849,2]
[341858157,1731257452026,-500.0,0.00026849,2]
[341858158,1731257452035,-500.0,0.00026849,2]
[341858159,1731257452044,-442.5841783,0.00026849,2]
[341858160,1731257452053,-500.0,0.00026849,2]
[341858161,1731257452062,-500.0,0.00026849,2]
[341858162,1731257452071,-558.54,0.00026849,2]
[341858163,1731257452080,-500.0,0.00026849,2]
[341858164,1731257452090,-785.87,0.00026849,2]
[341858165,1731257452100,-279.4362344,0.00026849,2]
[341858166,1731257452115,-500.0,0.00026849,2]
[341858167,1731257452125,-719.61,0.00026849,2]
[341858168,1731257452134,-530.71,0.00026849,2]
[341858169,1731257452143,-500.0,0.00026849,2]
[341858170,1731257452153,-500.0,0.00026849,2]
[341858171,1731257452162,-500.0,0.00026849,2]
[341858172,1731257452171,-500.0,0.00026849,2]
[341858173,1731257452183,-605.16,0.00026849,2]
[341858174,1731257452193,-892.4,0.00026849,2]
[341858175,1731257452203,-607.97,0.00026849,2]
[341858176,1731257452214,-256.32,0.00026849,2]
[341858177,1731257452224,-500.0,0.00026849,2]
[341858178,1731257452234,-500.0,0.00026849,2]
[341858179,1731257452244,-500.0,0.00026849,2]
[341858180,1731257452253,-605.83,0.00026849,2]
[341858181,1731257452263,-5400.98,0.00026849,2]
[341858182,1731257452272,-500.0,0.00026849,2]
[341858183,1731257452282,-500.0,0.00026849,2]
[341858184,1731257452291,-500.0,0.00026849,2]
[341858185,1731257452301,-1260.85,0.00026849,2]
[341858186,1731257452311,-710.94,0.00026849,2]
[341858187,1731257452320,-500.0,0.00026849,2]
[341858188,1731257452330,-500.0,0.00026849,2]
[341858189,1731257452339,-500.0,0.00026849,2]
[341858190,1731257452349,-717.77,0.00026849,2]
[341858191,1731257452359,-11209.15,0.00026849,2]
[341858192,1731257452368,-500.0,0.00026849,2]
[341858193,1731257452378,-500.0,0.00026849,2]
[341858194,1731257452388,-698.5,0.00026849,2]
[341858195,1731257452397,-914.41,0.00026849,2]
[341858196,1731257452407,-996.8,0.00026849,2]
[341858197,1731257452416,-500.0,0.00026849,2]
[341858198,1731257452425,-500.0,0.00026849,2]
[341858199,1731257452435,-233.78257472,0.00026849,2]
[341858200,1731257452445,-500.0,0.00026849,2]
[341858201,1731257452454,-1104.83,0.00026849,2]
[341858202,1731257452463,-1052.5,0.00026849,2]
[341858203,1731257452473,-500.0,0.00026849,2]
[341858204,1731257452482,-1589.67,0.00026849,2]
[341858205,1731257452491,-2172.14,0.00026849,2]
[341858206,1731257452501,-800.73,0.00026849,2]
[341858207,1731257452511,-500.0,0.00026849,2]
[341858208,1731257452521,-2040.76,0.00026849,2]
[341858209,1731257452532,-500.0,0.00026849,2]
[341858210,1731257452542,-659.05,0.00026849,2]
[341858211,1731257452552,-500.0,0.00026849,2]
[341858212,1731257452562,-784.34,0.00026849,2]
[341858213,1731257452571,-500.0,0.00026849,2]
[341858214,1731257452581,-500.0,0.00026849,2]
[341858215,1731257452591,-769.05,0.00026849,2]
[341858216,1731257452601,-500.0,0.00026849,2]
[341858217,1731257452613,-676.42,0.00026849,2]
[341858218,1731257452622,-715.07,0.00026849,2]
[341858219,1731257452632,-500.0,0.00026873,2]
[341858220,1731257452641,-291.44986977,0.00026873,2]
[341858221,1731257452651,-101435.92380083,0.000269,2]
[341858222,1731257452660,-545.290957,0.000269,7]
[341858223,1731257452669,-205.236268,0.000269,7]
[341858224,1731257452678,-545.290957,0.000269,7]
[341858225,1731257452687,-205.236268,0.000269,7]
[341858226,1731257452696,-151.0,0.000269,7]
[341858227,1731257452705,-2186.667346,0.000269,7]
[341858228,1731257452714,-2186.667346,0.000269,7]
[341858229,1731257452724,-151.0,0.000269,7]
[341858230,1731257452735,-151.0,0.000269,7]
[341858231,1731257452752,-150.112233,0.00027,18]
[341858232,1731257452771,-1000.0,0.00027052,2]
[341858233,1731257452787,-507.33145432,0.00027052,2]
[341858234,1731257452797,-1000.0,0.00027052,2]
[341858235,1731257452806,-1015.893914,0.0002712,2]
[341858236,1731257452816,-201.60167711,0.00027122,2]
[341858237,1731257452825,-12190.04728864,0.00027122,2]
[341858238,1731257452835,-1167.687452,0.00027122,7]
[341858239,1731257452844,-1167.687452,0.00027122,7]
[341858240,1731257452853,-151.0,0.00027122,7]
[341858241,1731257452864,-987.405149,0.00027122,7]
[341858242,1731257452873,-987.405149,0.00027122,7]
[341858243,1731257452882,-406.21717,0.00027122,7]
[341858244,1731257452892,-406.21717,0.00027122,7]
[341858245,1731257452901,-790.11656,0.00027122,7]
[341858246,1731257452910,-790.11656,0.00027122,7]
[341858247,1731257452919,-177.376895,0.00027122,7]
[341858248,1731257452929,-177.376895,0.00027122,7]
[341858249,1731257452938,-500.0,0.00027123,2]
[341858250,1731257452947,-1431.72,0.00027123,2]
[341858251,1731257452956,-500.0,0.00027123,2]